bitfinex/quotes_ETHUSD_20240716
["timestamp","ask_amount","ask_price","bid_price","bid_amount"]
[1721149908586,3.43559,3465.5,3464.6,5.492]
[1721149908996,0.55,3465.5,3464.6,5.492]
[1721149909182,0.55,3465.6,3464.6,5.492]
[1721149909371,3.43557,3465.6,3464.6,5.492]
[1721149909798,6.32114,3465.6,3464.6,5.492]
[1721149909963,3.43557,3465.6,3464.6,5.492]
[1721149910697,2.88559,3465.5,3464.6,5.492]
[1721149910868,0.55,3465.4,3464.6,5.492]
[1721149911062,3.43568,3465.4,3464.4,0.2893]
[1721149911263,2.88586,3465.2,3464.4,0.2893]
[1721149912063,2.88602,3465.0,3464.3,2.2879]
[1721149912465,0.55,3464.9,3464.3,2.2879]
[1721149912865,2.88572,3465.4,3464.3,3.06589]
[1721149913277,0.55,3465.3,3464.3,3.06589]
[1721149913487,2.88592,3465.1,3464.3,3.06589]
[1721149913695,2.88592,3465.1,3464.3,2.2879]
[1721149915805,2.88585,3465.2,3464.3,2.2879]
[1721149916002,0.55,3465.1,3464.3,2.2879]
[1721149916717,0.55,3465.2,3464.6,2.452]
[1721149918997,3.43584,3465.2,3464.6,2.452]
[1721149919416,3.43584,3465.2,3464.3,2.2879]
[1721149919732,2.88605,3465.0,3464.3,2.2879]
[1721149919932,2.8861,3464.9,3464.3,2.2879]
[1721149920237,2.8861,3464.9,3463.9,7.37]
[1721149920700,2.88655,3464.4,3463.9,7.37]
[1721149921101,2.88647,3464.5,3463.9,7.37]
[1721149921102,2.88658,3464.3,3463.9,7.37]
[1721149921303,2.88658,3464.3,3463.8,2.4277]
[1721149921623,2.88647,3464.5,3463.8,2.4277]
[1721149921924,2.88628,3464.7,3463.8,2.4277]
[1721149922120,2.88634,3464.6,3463.8,3.508381]
[1721149923286,2.88623,3464.8,3463.8,3.508381]
[1721149923491,0.55,3464.7,3463.8,3.508381]
[1721149923711,0.55,3464.7,3464.1,2.452]
[1721149923913,0.55,3464.8,3464.1,2.452]
[1721149924852,2.99530109,3465.6,3464.1,8.91761214]
[1721149925010,2.88562,3465.5,3464.5,2.452]
[1721149925352,5.27030109,3465.9,3464.6,2.3119]
[1721149925353,2.275,3465.9,3464.6,2.3119]
[1721149925555,2.88567,3465.4,3464.6,2.3119]
[1721149925711,2.88535,3465.8,3464.6,6.420947]
[1721149925915,2.88542,3465.7,3464.6,6.420947]
[1721149926155,2.88552,3465.6,3464.6,6.420947]
[1721149926948,2.88495,3466.3,3464.6,6.420947]
[1721149926949,5.88041109,3466.1,3464.9,2.452]
[1721149927253,2.88512,3466.1,3464.9,2.452]
[1721149927460,2.88512,3466.1,3464.9,3.9165357]
[1721149927765,2.8853,3465.9,3464.9,3.9165357]
[1721149928170,2.8853,3465.9,3464.9,6.8026157]
[1721149928320,2.8853,3465.9,3465.0,2.452]
[1721149928524,0.55,3465.8,3465.0,2.452]
[1721149928738,0.55,3465.8,3465.1,0.68026157]
[1721149929161,2.88494,3466.3,3465.1,3.72026157]
[1721149929340,2.88478,3466.5,3465.4,2.452]
[1721149929548,2.88478,3466.5,3465.5,0.05770589]
[1721149929872,2.8847,3466.6,3465.6,3.04]
[1721149930036,2.8848,3466.5,3465.4,2.452]
[1721149930231,2.8848,3466.5,3465.4,5.33766]
[1721149930437,2.88494,3466.3,3465.4,2.452]
[1721149930632,2.88506,3466.2,3465.4,2.452]
[1721149930951,2.88531,3465.9,3465.2,2.3119]
[1721149932362,2.88534,3465.8,3465.2,2.4539]
[1721149932653,2.8856,3465.5,3465.2,0.142]
[1721149933066,2.88575,3465.3,3465.2,0.142]
[1721149933265,2.8856,3465.5,3465.2,0.142]
[1721149933464,5.7715,3465.3,3465.2,0.142]
[1721149933996,9.3215,3465.3,3465.2,0.142]
[1721149934690,12.20725,3465.3,3465.2,0.142]
[1721149935070,20.53100109,3465.3,3465.2,0.142]
[1721149935591,17.5357,3465.3,3465.2,0.142]
[1721149936967,20.54014944,3465.3,3465.2,0.142]
[1721149937482,17.65439944,3465.3,3465.2,0.142]
[1721149938066,14.64995,3465.3,3465.2,0.142]
[1721149938265,12.20725,3465.3,3465.2,0.142]
[1721149939374,8.7715,3465.3,3465.2,0.142]
[1721149940113,11.65725,3465.3,3465.2,0.142]
[1721149940770,12.20725,3465.3,3465.2,0.142]
[1721149941194,9.3215,3465.3,3465.2,0.142]
[1721149941794,3.0,3465.3,3465.2,0.142]
[1721149942101,2.88559,3465.5,3465.2,0.142]
[1721149942433,2.88565,3465.5,3465.2,0.142]
[1721149942614,5.7715,3465.3,3465.2,0.142]
[1721149943618,8.7715,3465.3,3465.2,0.142]
[1721149943816,9.3215,3465.3,3465.2,0.142]
[1721149944018,12.20725,3465.3,3465.2,0.142]
[1721149944427,15.093,3465.3,3465.2,0.142]
[1721149945529,15.093,3465.3,3463.9,7.37]
[1721149945530,2.88683,3464.0,3463.9,7.37]
[1721149945692,2.88683,3464.0,3463.4,2.497]
[1721149945693,2.88692,3463.9,3463.4,2.497]
[1721149946704,4.58602,3465.0,3463.4,2.497]
[1721149946705,2.8868,3464.1,3463.4,2.497]
[1721149947038,2.8868,3464.1,3463.4,4.9529]
[1721149947526,2.88683,3464.0,3463.4,4.9529]
[1721149947732,2.88673,3464.2,3463.4,4.9529]
[1721149947934,2.88673,3464.2,3463.5,2.452]
[1721149948143,2.8865,3464.4,3463.6,2.70149]
[1721149948297,2.88658,3464.3,3463.6,2.70149]
[1721149948637,2.88655,3464.4,3463.6,2.70149]
[1721149948996,2.88661,3464.3,3463.6,2.70149]
[1721149949331,2.88691,3464.0,3463.5,2.452]
[1721149950102,2.88691,3464.0,3463.4,2.497]
[1721149950103,2.88693,3463.9,3463.4,2.497]
[1721149950834,2.88702,3463.8,3463.4,2.497]
[1721149951422,2.88663,3464.3,3463.4,2.497]
[1721149951625,2.88705,3463.8,3463.4,2.497]
[1721149952216,2.88714,3463.7,3463.4,2.497]
[1721149952715,2.88697,3463.9,3463.4,2.497]
[1721149952898,2.88701,3463.8,3463.4,2.497]
[1721149953101,2.88709,3463.7,3463.4,2.497]
[1721149953537,3.0,3464.7,3463.5,3.04]
[1721149953736,3.0,3464.7,3463.4,3.7289]
[1721149953737,2.88648,3464.5,3463.4,2.497]
[1721149953939,3.0,3464.8,3463.4,2.497]
[1721149953940,2.88666,3464.3,3463.5,2.452]
[1721149954140,5.88655,3464.4,3463.5,2.452]
[1721149954305,2.88663,3464.3,3463.6,1.2319]
[1721149954505,2.88663,3464.3,3463.5,2.452]
[1721149955040,2.88667,3464.2,3463.5,2.452]
[1721149955403,2.88676,3464.1,3463.5,2.452]
[1721149955602,2.88676,3464.1,3463.4,2.497]
[1721149956521,2.88691,3464.0,3463.4,2.497]
[1721149956728,2.88676,3464.1,3463.4,2.497]
[1721149956729,2.88693,3463.9,3463.4,2.497]
[1721149956906,2.8871,3463.7,3463.4,2.497]
[1721149957104,3.0,3464.4,3463.4,2.497]
[1721149957105,2.88685,3464.0,3463.4,2.497]
[1721149957829,3.0,3464.4,3463.3,7.37]
[1721149957830,3.43695,3463.9,3463.3,7.37]
[1721149958005,2.8871,3463.7,3463.3,7.37]
[1721149958602,2.88695,3463.9,3463.3,7.37]
[1721149959050,2.88714,3463.7,3463.3,7.37]
[1721149960413,2.88717,3463.6,3463.3,7.37]
[1721149960832,2.88695,3463.9,3462.8,15.2852]
[1721149961039,2.88695,3463.9,3463.3,2.3299]
[1721149962110,2.88712,3463.7,3463.3,2.3299]
[1721149963222,2.88695,3463.9,3463.3,2.3299]
[1721149963409,2.887,3463.8,3463.3,2.3299]
[1721149963615,2.88688,3464.0,3463.3,2.3299]
[1721149963924,3.0,3464.4,3463.6,2.452]
[1721149963925,2.88665,3464.3,3463.6,2.452]
[1721149964125,3.0,3464.4,3463.6,2.452]
[1721149964126,2.88656,3464.4,3463.6,2.452]
[1721149964331,5.88663,3464.3,3463.6,2.452]
[1721149964510,2.88645,3464.5,3463.6,3.282009]
[1721149964711,2.8865,3464.4,3463.6,3.282009]
[1721149964908,2.88659,3464.3,3463.6,3.282009]
[1721149965111,2.88668,3464.2,3463.6,3.282009]
[1721149966349,2.88668,3464.2,3463.6,2.452]
[1721149967814,5.77308,3464.4,3463.6,2.452]
[1721149968147,2.88659,3464.3,3463.6,2.452]
[1721149968359,0.05027107,3464.3,3463.6,5.492]
[1721149968649,0.05027107,3464.3,3463.7,2.4974]
[1721149968868,0.05027107,3464.3,3463.8,1.376376]
[1721149969779,2.93692107,3464.3,3463.7,2.4974]
[1721149969927,2.88669,3464.2,3463.7,2.4974]
[1721149971329,2.88676,3464.1,3463.7,2.4974]
[1721149971543,2.88676,3464.1,3463.3,2.7413]
[1721149975897,2.88668,3464.2,3463.3,5.7813]
[1721149976465,2.88675,3464.1,3463.3,5.7813]
[1721149976666,2.88702,3463.8,3463.3,2.7413]
[1721149976916,5.7741,3463.8,3463.3,2.7413]
[1721149977077,2.88709,3463.7,3463.3,2.452]
[1721149977962,2.88709,3463.7,3463.2,9.8674]
[1721149978766,2.88709,3463.7,3463.2,2.4974]
[1721149980299,0.05027107,3464.3,3463.3,5.492]
[1721149980503,2.88669,3464.2,3463.3,5.492]
[1721149980801,2.88682,3464.1,3463.3,5.492]
[1721149981167,2.88683,3464.0,3463.3,2.452]
[1721149981793,2.88669,3464.2,3463.3,2.452]
[1721149982306,2.88683,3464.1,3463.3,2.452]
[1721149982489,2.88683,3464.1,3463.3,5.492]
[1721149982801,0.05027107,3464.3,3463.3,5.492]
[1721149982802,2.93692107,3464.3,3463.4,1.167587]
[1721149982964,2.93692107,3464.3,3463.4,4.207587]
[1721149983170,0.05027107,3464.3,3464.1,2.452]
[1721149983479,0.05027107,3464.3,3464.2,2.3389]
[1721149983685,0.05027107,3464.3,3464.2,5.3789]
[1721149984012,0.05027107,3464.3,3464.2,6.16199]
[1721149985168,0.05027107,3464.3,3464.2,9.04865]
[1721149985572,0.05027107,3464.3,3464.2,6.16199]
[1721149986199,0.05027107,3464.3,3464.2,2.3389]
[1721149986507,0.05027107,3464.3,3464.1,0.2893]
[1721149987705,0.05027107,3464.3,3464.0,3.3293]
[1721149988099,0.05027107,3464.3,3464.0,3.04]
[1721149988933,0.05027107,3464.3,3464.1,2.452]
[1721149989135,0.05027107,3464.3,3464.1,3.520419]
[1721149990434,0.05027107,3464.3,3464.1,2.452]
[1721149992321,0.05027107,3464.3,3463.9,2.3052]
[1721149992837,0.05027107,3464.3,3463.8,0.2893]
[1721149993242,2.93690107,3464.3,3463.8,0.2893]
[1721149993536,2.93690107,3464.3,3463.6,2.452]
[1721149993537,2.93690107,3464.3,3463.7,0.2893]
[1721149995222,0.05027107,3464.3,3463.7,0.2893]
[1721149995545,0.05027107,3464.3,3463.8,3.3293]
[1721149995846,0.05027107,3464.3,3464.1,2.452]
[1721149998334,0.05027107,3464.3,3464.1,8.37874]
[1721149998525,0.05027107,3464.3,3464.2,5.92666]
[1721149998842,0.05027107,3464.3,3464.2,8.42256]
[1721149999045,0.05027107,3464.3,3464.2,9.827619]
[1721149999210,0.05027107,3464.3,3464.2,12.714279]
[1721149999814,0.05027107,3464.3,3464.2,13.003579]
[1721150000312,0.05027107,3464.3,3464.2,5.8252]
[1721150000512,0.05027107,3464.3,3464.2,2.7852]
[1721150000839,0.05027107,3464.3,3464.2,0.2893]
[1721150001224,0.05027107,3464.3,3464.1,2.452]
[1721150001925,0.05027107,3464.3,3464.1,5.492]
[1721150002121,0.05027107,3464.3,3464.2,0.837878]
[1721150002913,0.05027107,3464.3,3464.2,0.89560212]
[1721150003447,0.05027107,3464.3,3464.2,0.89560035]
[1721150003742,0.05027107,3464.3,3464.2,0.837878]
[1721150004285,0.05027107,3464.3,3464.2,6.764538]
[1721150005229,0.05027107,3464.3,3464.2,6.464538]
[1721150008038,0.05027107,3464.3,3464.2,8.912238]
[1721150008427,0.05027107,3464.3,3464.2,11.798898]
[1721150011847,0.05027107,3464.3,3464.2,8.912238]
[1721150012070,0.05027107,3464.3,3464.2,8.37436]
[1721150013989,0.05027107,3464.3,3464.1,5.33874]
[1721150013990,0.05027107,3464.3,3464.1,2.7413]
[1721150015346,0.05027107,3464.3,3464.1,5.62803]
[1721150015788,0.05027107,3464.3,3464.1,5.33873]
[1721150016759,0.05027107,3464.3,3464.1,8.37869]
[1721150016981,0.05027107,3464.3,3464.1,5.33869]
[1721150017492,0.05027107,3464.3,3464.1,8.37869]
[1721150017849,0.05027107,3464.3,3464.1,2.452]
[1721150019203,0.05027107,3464.3,3464.2,8.35076]
[1721150019356,0.05027107,3464.3,3464.2,11.23742]
[1721150019695,0.05027107,3464.3,3464.2,11.52672]
[1721150025516,0.05027107,3464.3,3464.2,0.2893]
[1721150026013,0.05027107,3464.3,3463.7,5.33908]
[1721150026190,0.05027107,3464.3,3463.7,2.452]
[1721150026872,2.93688107,3464.3,3463.7,2.452]
[1721150027073,5.28387,3464.2,3463.7,2.452]
[1721150027577,5.28387,3464.2,3463.3,2.452]
[1721150027774,5.28387,3464.2,3463.2,0.00348859]
[1721150027775,2.887,3463.9,3463.2,0.00348859]
[1721150028164,0.55,3464.1,3463.2,0.00348859]
[1721150028364,0.05027107,3464.3,3463.2,0.00348859]
[1721150028365,2.88739,3463.4,3463.2,0.00348859]
[1721150029268,2.88741,3463.3,3463.2,0.00348859]
[1721150029870,5.74711,3463.3,3463.2,0.00348859]
[1721150033084,0.55,3463.3,3463.2,0.00348859]
[1721150033596,2.88683,3464.1,3463.2,0.00348859]
[1721150033597,2.3129,3464.1,3463.2,0.00348859]
[1721150033781,5.88683,3464.0,3463.2,0.00348859]
[1721150033981,2.88719,3463.6,3463.2,0.00348859]
[1721150034517,2.88707,3463.8,3463.2,0.00348859]
[1721150034716,2.88694,3463.9,3463.2,0.00348859]
[1721150035012,0.05027107,3464.3,3463.3,2.452]
[1721150035189,2.88668,3464.2,3463.3,2.452]
[1721150036290,2.88681,3464.1,3463.3,2.452]
[1721150036810,0.55,3464.0,3463.3,2.452]
[1721150037381,2.88692,3463.9,3463.3,2.452]
[1721150038823,0.55,3464.0,3463.3,2.452]
[1721150039399,3.43686,3464.0,3463.3,2.452]
[1721150039599,0.55,3464.0,3463.3,2.452]
[1721150040313,2.93688107,3464.3,3463.4,2.3685]
[1721150040501,2.93688107,3464.3,3463.7,2.452]
[1721150040712,2.8867,3464.2,3463.7,2.452]
[1721150041214,2.88679,3464.1,3463.3,2.452]
[1721150041690,2.88683,3464.0,3463.3,2.452]
[1721150041876,2.88675,3464.1,3463.3,2.452]
[1721150043410,5.77358,3464.1,3463.3,2.452]
[1721150043593,2.88675,3464.1,3463.3,2.452]
[1721150044206,2.88685,3464.0,3463.3,2.452]
[1721150044709,2.88675,3464.1,3463.3,2.452]
[1721150044909,0.05027107,3464.3,3463.3,5.33936]
[1721150045096,0.05027107,3464.3,3463.7,2.452]
[1721150046578,0.05027107,3464.3,3463.8,0.05773459]
[1721150046783,0.05027107,3464.3,3464.1,2.452]
[1721150047782,0.05027107,3464.3,3464.1,2.985899]
[1721150048115,0.05027107,3464.3,3464.2,2.3942]
[1721150049980,0.05027107,3464.3,3464.2,5.4342]
[1721150050185,5.34148,3466.1,3464.7,2.8862]
[1721150050393,2.4564,3466.1,3465.5,2.452]
[1721150050718,2.88506,3466.2,3465.5,2.452]
[1721150052133,2.88528,3465.9,3465.1,7.37]
[1721150052821,2.88514,3466.1,3465.1,7.37]
[1721150053024,0.55,3466.0,3465.1,7.37]
[1721150053324,3.43518,3466.0,3465.1,7.37]
[1721150053891,2.88492,3466.3,3465.2,2.88583]
[1721150054092,2.88492,3466.3,3465.3,1.863382]
[1721150055529,3.43476,3466.5,3465.3,1.863382]
[1721150055744,2.8846,3466.7,3465.5,5.26011]
[1721150056047,2.88444,3466.9,3465.8,2.452]
[1721150056191,2.88451,3466.8,3465.8,2.452]
[1721150057595,2.3376,3467.0,3465.8,5.33732]
[1721150057799,0.55,3466.9,3465.8,5.33732]
[1721150057998,2.8845,3466.8,3465.8,5.33732]
[1721150058230,0.55,3466.9,3465.8,7.438052]
[1721150058414,0.03909147,3466.7,3465.8,7.438052]
[1721150060465,0.58909147,3466.7,3465.6,7.37]
[1721150060774,2.8851,3466.1,3465.6,7.37]
[1721150061064,2.88495,3466.3,3465.2,7.37]
[1721150061225,2.88501,3466.2,3465.2,7.37]
[1721150061421,2.88495,3466.3,3465.2,7.37]
[1721150061760,2.88517,3466.0,3465.2,7.37]
[1721150064356,6.32008,3466.2,3465.2,7.37]
[1721150064654,2.88508,3466.1,3465.2,7.37]
[1721150064887,2.8852,3466.0,3465.2,7.37]
[1721150066049,2.88526,3465.9,3465.2,7.37]
[1721150067054,2.88536,3465.8,3465.2,7.37]
[1721150067411,2.9564,3466.2,3465.2,7.37]
[1721150067412,5.7715,3465.3,3465.2,7.37]
[1721150067551,0.55,3465.7,3464.6,7.37]
[1721150067552,2.88599,3465.1,3464.6,7.37]
[1721150067756,2.88611,3464.9,3464.6,7.37]
[1721150068305,5.7725,3464.7,3464.6,7.37]
[1721150068453,2.88625,3464.7,3464.6,7.37]
[1721150068653,3.43625,3464.7,3464.6,7.37]
[1721150068856,2.4956,3465.5,3464.6,7.37]
[1721150069085,2.88612,3464.9,3464.6,7.37]
[1721150069593,5.4956,3465.5,3464.6,7.37]
[1721150069594,2.88623,3464.8,3464.6,7.37]
[1721150070522,2.88625,3464.7,3464.6,7.37]
[1721150070727,6.3225,3464.7,3464.6,7.37]
[1721150070929,2.88665,3464.3,3463.7,4.9274]
[1721150071090,2.88665,3464.3,3463.7,2.452]
[1721150071295,2.88665,3464.3,3463.2,0.00348859]
[1721150071296,2.88693,3463.9,3463.3,2.4212]
[1721150071794,2.88675,3464.1,3463.3,2.4212]
[1721150072014,2.88675,3464.1,3463.3,4.8732]
[1721150072809,2.88689,3464.0,3463.3,4.8732]
[1721150072998,2.88692,3463.9,3463.3,4.8732]
[1721150074416,2.88702,3463.8,3463.3,4.8732]
[1721150074602,2.88702,3463.8,3463.3,2.4212]
[1721150075335,2.88684,3464.0,3463.3,4.8732]
[1721150075537,2.88658,3464.4,3463.3,5.36052]
[1721150075842,3.0,3464.7,3463.3,5.36052]
[1721150075843,2.88662,3464.3,3463.7,2.452]
[1721150076147,2.88667,3464.2,3463.3,5.36052]
[1721150077113,2.88657,3464.4,3463.4,1.18703572]
[1721150077317,5.19332,3465.4,3463.5,0.05773868]
[1721150077318,2.88637,3464.6,3463.5,0.05773868]
[1721150077543,2.88637,3464.6,3463.7,2.452]
[1721150077544,2.88658,3464.4,3463.7,2.452]
[1721150077812,2.88637,3464.6,3463.8,2.3753]
[1721150078013,2.88642,3464.5,3463.8,2.3753]
[1721150078653,2.8863,3464.7,3463.8,3.146755]
[1721150079210,2.88633,3464.6,3463.8,3.146755]
[1721150080064,2.88617,3464.8,3463.8,3.146755]
[1721150080279,5.88627,3464.7,3463.8,3.146755]
[1721150082154,5.88627,3464.7,3463.8,0.771455]
[1721150082351,3.0,3464.7,3463.9,3.5751675]
[1721150082844,2.88601,3465.0,3464.1,2.452]
[1721150083038,3.0,3464.9,3464.1,2.452]
[1721150083236,2.88555,3465.6,3464.1,2.452]
[1721150083237,3.0,3465.5,3464.1,2.452]
[1721150083474,5.77214,3465.0,3464.1,2.452]
[1721150083778,5.88609,3464.9,3464.2,0.59514097]
[1721150084666,2.88595,3465.1,3464.2,0.59514097]
[1721150084877,2.88577,3465.3,3464.5,2.452]
[1721150085055,0.55,3465.4,3464.5,2.452]
[1721150085056,2.88568,3465.4,3464.5,2.452]
[1721150085398,2.88568,3465.4,3464.6,1.074928]
[1721150085942,2.8855,3465.6,3464.9,2.452]
[1721150086356,2.88559,3465.5,3464.9,2.452]
[1721150086843,0.1,3465.8,3465.0,2.3672]
[1721150087245,0.1,3465.8,3465.0,5.25319]
[1721150087460,0.1,3465.8,3465.3,2.452]
[1721150087746,0.1,3465.8,3465.4,0.05770934]
[1721150087995,0.1,3465.8,3465.5,2.3961]
[1721150100810,0.1,3465.8,3465.3,2.452]
[1721150102013,0.1,3465.8,3465.1,2.3124]
[1721150104126,2.88546,3465.7,3465.1,2.3124]
[1721150104536,0.1,3465.8,3465.1,2.3124]
[1721150104907,2.98534,3465.8,3465.1,2.3124]
[1721150105628,0.1,3465.8,3465.1,2.3124]
[1721150106136,0.1,3465.8,3465.3,2.452]
[1721150107559,2.88564,3465.5,3465.0,7.37]
[1721150108196,2.88558,3465.6,3465.0,7.37]
[1721150108197,2.98541,3465.8,3465.0,7.37]
[1721150108404,0.55,3465.7,3465.0,7.37]
[1721150108607,2.88553,3465.6,3465.0,7.37]
[1721150109749,0.55,3465.7,3464.8,2.4071]
[1721150109950,2.88574,3465.4,3464.6,19.61]
[1721150110167,2.88583,3465.2,3464.6,19.61]
[1721150110385,2.88583,3465.2,3464.5,2.452]
[1721150110669,2.88627,3464.7,3464.2,2.3214]
[1721150111143,2.88609,3464.9,3464.2,2.3214]
[1721150111144,2.88617,3464.8,3464.2,2.3214]
[1721150111326,2.88625,3464.7,3464.2,2.3214]
[1721150111525,5.77225,3464.9,3464.2,2.3214]
[1721150111724,2.88609,3464.9,3464.2,2.3214]
[1721150111957,0.55,3464.8,3463.9,2.452]
[1721150112230,2.88645,3464.5,3463.9,2.452]
[1721150112649,2.88605,3465.0,3463.9,5.497]
[1721150112856,2.4509,3465.5,3464.3,2.452]
[1721150113015,2.88589,3465.2,3464.4,2.2683]
[1721150113350,2.88596,3465.1,3464.4,2.2683]
[1721150113555,2.88605,3465.0,3464.4,2.2683]
[1721150114053,2.88628,3464.7,3464.2,7.37]
[1721150114224,2.88628,3464.7,3464.0,2.3277]
[1721150115550,2.88617,3464.8,3464.0,2.3277]
[1721150115742,2.8861,3464.9,3464.0,2.3277]
[1721150116063,2.88646,3464.5,3464.0,2.3277]
[1721150116570,2.88646,3464.5,3463.8,7.37]
[1721150116571,2.88636,3464.6,3463.8,7.37]
[1721150116771,2.88691,3463.9,3463.8,7.37]
[1721150116951,2.88713,3463.7,3463.2,2.3881]
[1721150117542,2.88713,3463.7,3462.8,5.7863]
[1721150117543,2.88713,3463.7,3462.8,9.822]
[1721150117815,2.88727,3463.5,3462.9,2.44535886]
[1721150118017,2.88713,3463.7,3462.9,2.44535886]
[1721150118555,2.88695,3463.9,3462.9,2.44535886]
[1721150119424,2.88695,3463.9,3462.9,5.33308886]
[1721150119818,2.88677,3464.1,3463.0,2.88765]
[1721150120026,2.88684,3464.0,3463.3,2.3692]
[1721150120659,2.88675,3464.1,3463.3,2.3692]
[1721150120863,2.88684,3464.0,3463.3,2.3692]
[1721150121521,2.88662,3464.3,3463.3,2.3692]
[1721150121720,2.88662,3464.3,3463.4,0.98175439]
[1721150122157,2.88668,3464.2,3463.4,0.98175439]
[1721150123062,2.8871,3463.7,3463.1,2.10877389]
[1721150123219,2.8871,3463.7,3462.9,2.3326]
[1721150126238,2.88718,3463.6,3462.9,2.3326]
[1721150129666,2.88718,3463.6,3462.8,9.822]
[1721150129667,2.88748,3463.3,3462.8,7.37]
[1721150129973,2.496,3464.2,3462.8,7.37]
[1721150129974,2.88757,3463.2,3462.8,7.37]
[1721150130432,2.496,3464.2,3462.8,9.822]
[1721150130637,2.88714,3463.7,3462.8,9.822]
[1721150130860,2.88702,3463.8,3462.8,12.70982]
[1721150131091,2.88702,3463.8,3463.0,2.3998]
[1721150131575,3.0,3464.4,3463.2,2.452]
[1721150131780,5.88651,3464.4,3463.4,2.3998]
[1721150132005,5.24972,3465.1,3463.6,2.452]
[1721150132006,2.8864,3464.6,3463.6,2.452]
[1721150132277,2.8864,3464.6,3463.7,1.367131]
[1721150132639,2.88642,3464.5,3463.7,1.367131]
[1721150133257,2.3638,3465.1,3463.7,1.367131]
[1721150133258,2.88636,3464.6,3463.7,1.367131]
[1721150134355,2.88623,3464.8,3463.7,4.254211]
[1721150134553,2.88634,3464.6,3463.8,0.9593371]
[1721150134861,2.88611,3464.9,3463.8,0.9593371]
[1721150135065,3.55,3464.8,3463.8,0.9593371]
[1721150135704,2.88637,3464.6,3463.8,0.9593371]
[1721150135906,2.88643,3464.5,3463.8,0.9593371]
[1721150136195,2.88643,3464.5,3463.4,8.33207]
[1721150136494,2.88664,3464.3,3463.4,2.3998]
[1721150137296,2.88668,3464.2,3463.4,2.3998]
[1721150137448,2.88668,3464.2,3463.5,1.799666]
[1721150137655,3.43655,3464.4,3463.5,1.799666]
[1721150137994,0.55,3464.4,3463.5,1.799666]
[1721150138156,3.43647,3464.5,3463.5,1.799666]
[1721150138568,3.0,3464.8,3463.5,1.799666]
[1721150138569,5.88617,3464.8,3463.7,2.88707]
[1721150138883,3.43627,3464.7,3463.8,1.0025846]
[1721150139405,2.88635,3464.6,3463.8,1.0025846]
[1721150141486,2.88635,3464.6,3463.6,5.33916]
[1721150142311,2.88635,3464.6,3463.6,8.22626]
[1721150142770,0.55,3464.7,3463.6,8.22626]
[1721150142771,0.55,3464.7,3463.7,2.88707]
[1721150143195,2.88635,3464.6,3463.7,2.88707]
[1721150143375,2.88635,3464.6,3463.6,2.452]
[1721150143800,2.88635,3464.6,3463.6,5.33912]
[1721150144203,2.88635,3464.6,3463.6,8.22622]
[1721150144411,2.88635,3464.6,3463.6,6.5816686]
[1721150144901,0.55,3464.7,3463.6,2.452]
[1721150145101,2.88663,3464.3,3463.4,2.3998]
[1721150146412,2.88663,3464.3,3463.4,5.28713]
[1721150147108,3.43631,3464.7,3463.4,8.17438]
[1721150147289,2.88643,3464.5,3463.5,1.828568]
[1721150147610,0.55,3464.4,3463.5,4.715808]
[1721150147973,2.88631,3464.7,3463.7,2.88708]
[1721150148406,0.03800452,3464.6,3463.7,2.88708]
[1721150148706,0.03800452,3464.6,3463.7,5.7741]
[1721150148906,0.03800452,3464.6,3463.8,1.7424668]
[1721150150682,0.03800452,3464.6,3463.6,2.452]
[1721150150683,2.92435452,3464.6,3463.6,2.452]
[1721150151721,2.92435452,3464.6,3463.6,5.33915]
[1721150152319,2.92435452,3464.6,3463.7,2.88707]
[1721150154124,2.88643,3464.5,3463.6,2.452]
[1721150155385,5.77291,3464.5,3463.6,2.452]
[1721150155587,2.88643,3464.5,3463.6,2.452]
[1721150155811,5.77292,3464.5,3463.6,5.33916]
[1721150156000,5.77292,3464.5,3463.6,2.452]
[1721150156423,2.88665,3464.3,3463.6,2.452]
[1721150156730,2.88667,3464.2,3463.6,2.452]
[1721150156899,2.88667,3464.2,3463.5,7.37]
[1721150157898,2.88658,3464.4,3463.5,7.37]
[1721150158134,2.92437452,3464.6,3463.5,7.37]
[1721150158426,3.43648,3464.5,3463.5,9.503079]
[1721150158922,5.81077452,3464.6,3463.6,5.33911]
[1721150159299,2.92437452,3464.6,3463.6,8.22622]
[1721150159506,5.81077452,3464.6,3463.6,5.33911]
[1721150159702,2.92437452,3464.6,3463.6,8.22621]
[1721150159903,2.92437452,3464.6,3463.8,2.88697]
[1721150159904,0.03800452,3464.6,3463.8,2.88697]
[1721150160108,0.03800452,3464.6,3463.9,2.88687]
[1721150160326,0.03800452,3464.6,3463.8,2.453]
[1721150160632,2.88651,3464.4,3463.6,2.452]
[1721150160939,0.03800452,3464.6,3464.0,2.452]
[1721150161144,0.03800452,3464.6,3464.1,0.2452]
[1721150161297,0.03800452,3464.6,3463.7,2.88706]
[1721150161493,0.03800452,3464.6,3463.6,4.905]
[1721150161694,0.03800452,3464.6,3463.5,7.37]
[1721150161695,2.88704,3463.8,3463.5,7.37]
[1721150161991,2.88752,3463.2,3462.7,7.37]
[1721150162192,2.88752,3463.2,3462.3,7.37]